bitfinex/quotes_SOLUSD_20241121
["timestamp","ask_amount","ask_price","bid_price","bid_amount"]
[1732182792526,0.5,242.41,242.26,4.34482918]
[1732182792527,9.40594414,242.34,242.26,4.34482918]
[1732182792728,14.69089407,242.33,242.26,4.34482918]
[1732182792935,7.3949,242.37,242.26,4.34482918]
[1732182793239,14.69089407,242.33,242.26,4.34482918]
[1732182794738,14.69089407,242.32,242.26,4.34482918]
[1732182795143,14.69089407,242.32,242.21,23.776884]
[1732182795449,14.69089407,242.32,242.21,28.12171318]
[1732182796628,14.69089407,242.28,242.21,4.34482918]
[1732182797236,14.69089407,242.3,242.21,4.34482918]
[1732182797543,14.69089407,242.28,242.21,4.34482918]
[1732182801942,14.69089407,242.28,242.17,5.01317979]
[1732182802545,25.3583,242.47,242.21,24.276884]
[1732182802724,14.69089407,242.43,242.23,23.776884]
[1732182802934,14.69089407,242.43,242.25,23.776884]
[1732182803234,14.69089407,242.43,242.27,23.776884]
[1732182803552,14.69089407,242.43,242.28,5.71829979]
[1732182804239,14.69089407,242.43,242.29,23.776884]
[1732182804442,14.69089407,242.45,242.31,23.776884]
[1732182804754,14.69089407,242.45,242.3,30.97839979]
[1732182804755,14.69089407,242.45,242.33,23.776884]
[1732182804937,14.69089407,242.45,242.34,10.39390675]
[1732182806139,7.7889,242.47,242.34,10.39390675]
[1732182806452,14.69089407,242.44,242.34,10.39390675]
[1732182807136,14.69089407,242.46,242.34,10.39390675]
[1732182809051,14.69089407,242.47,242.34,10.39390675]
[1732182810444,14.69089407,242.45,242.34,10.39390675]
[1732182811436,14.69089407,242.47,242.34,10.39390675]
[1732182811638,14.69089407,242.45,242.34,4.67560696]
[1732182812051,14.69089407,242.46,242.34,10.39390675]
[1732182812234,14.69089407,242.47,242.34,5.71829979]
[1732182812561,14.69089407,242.47,242.35,5.71829979]
[1732182813156,14.69089407,242.47,242.31,23.776884]
[1732182813729,14.69089407,242.47,242.32,5.71829979]
[1732182814247,14.69089407,242.47,242.33,4.67560696]
[1732182814451,23.776884,242.52,242.34,29.49518379]
[1732182814658,14.69089407,242.49,242.35,4.67560696]
[1732182814954,14.69089407,242.5,242.36,29.49518379]
[1732182815152,14.69089407,242.52,242.38,23.776884]
[1732182815360,14.69089407,242.52,242.39,10.39390675]
[1732182815557,40.13449407,242.53,242.39,10.39390675]
[1732182815936,40.13449407,242.53,242.39,4.67560696]
[1732182816345,14.69089407,242.52,242.39,4.67560696]
[1732182817447,0.5,242.64,242.42,23.776884]
[1732182817647,14.69089407,242.63,242.44,23.776884]
[1732182817859,14.69089407,242.63,242.45,4.67560696]
[1732182818157,14.69089407,242.63,242.46,23.776884]
[1732182818364,14.69089407,242.63,242.47,4.67560696]
[1732182818936,14.69089407,242.57,242.47,4.67560696]
[1732182821137,14.69089407,242.55,242.47,4.67560696]
[1732182821457,14.69089407,242.55,242.42,4.67560696]
[1732182821642,14.69089407,242.52,242.42,4.67560696]
[1732182824148,14.69089407,242.52,242.41,25.293]
[1732182825759,14.69089407,242.52,242.42,4.67560696]
[1732182827237,14.69089407,242.5,242.42,4.67560696]
[1732182827933,14.69089407,242.52,242.42,4.67560696]
[1732182829463,14.69089407,242.5,242.42,4.67560696]
[1732182830340,14.69089407,242.45,242.42,4.67560696]
[1732182830545,14.69089407,242.43,242.36,7.3541]
[1732182830758,14.69089407,242.39,242.34,17.6909]
[1732182831140,14.69089407,242.4,242.34,17.6909]
[1732182831844,14.69089407,242.39,242.34,17.6909]
[1732182832048,14.69089407,242.39,242.32,4.67560696]
[1732182832850,14.69089407,242.38,242.32,4.67560696]
[1732182833244,14.69089407,242.39,242.32,4.67560696]
[1732182834843,14.69089407,242.4,242.32,4.67560696]
[1732182837367,14.69089407,242.4,242.32,10.39388536]
[1732182837746,14.69089407,242.4,242.32,4.67560696]
[1732182839659,14.69089407,242.38,242.32,4.67560696]
[1732182839961,14.69089407,242.43,242.33,5.7182784]
[1732182840162,14.69089407,242.43,242.33,4.67560696]
[1732182840364,14.69089407,242.41,242.33,4.67560696]
[1732182841559,14.69089407,242.39,242.33,4.67560696]
[1732182841971,0.5,242.47,242.33,4.67560696]
[1732182841972,14.69089407,242.37,242.33,4.67560696]
[1732182842557,14.69089407,242.35,242.33,4.67560696]
[1732182842977,14.69089407,242.35,242.29,17.6414]
[1732182843864,14.69089407,242.35,242.27,10.39388536]
[1732182844370,14.69089407,242.35,242.28,4.67560696]
[1732182845687,14.69089407,242.33,242.28,4.67560696]
[1732182846278,14.69089407,242.35,242.28,4.67560696]
[1732182846472,14.69089407,242.36,242.28,4.67560696]
[1732182847078,14.69089407,242.34,242.28,4.67560696]
[1732182848679,14.69089407,242.32,242.28,4.67560696]
[1732182848878,14.69089407,242.3,242.23,18.8295]
[1732182849383,14.69089407,242.3,242.23,23.50510696]
[1732182849691,14.69089407,242.25,242.23,4.67560696]
[1732182849899,14.69089407,242.25,242.15,4.67560696]
[1732182850791,14.69089407,242.24,242.15,4.67560696]
[1732182852184,14.69089407,242.22,242.15,4.67560696]
[1732182857186,14.69089407,242.2,242.15,4.67560696]
[1732182857394,14.69089407,242.2,242.09,17.6093]
[1732182858583,14.69089407,242.18,242.09,17.6093]
[1732182858769,14.69089407,242.16,242.09,17.6093]
[1732182858969,14.69089407,242.12,242.1,4.67560696]
[1732182859181,14.69089407,242.11,242.03,5.7182784]
[1732182861985,14.69089407,242.13,242.03,5.7182784]
[1732182863289,14.69089407,242.15,242.03,10.13401918]
[1732182863793,14.69089407,242.21,242.05,23.776884]
[1732182863967,14.69089407,242.23,242.07,23.776884]
[1732182864165,14.69089407,242.23,242.08,15.75134729]
[1732182864369,41.33689407,242.25,242.09,23.776884]
[1732182864592,41.33689407,242.25,242.1,15.75134729]
[1732182865094,41.33689407,242.25,242.11,4.41574078]
[1732182865281,41.33689407,242.25,242.12,5.7182784]
[1732182865484,41.33689407,242.25,242.13,4.41574078]
[1732182866795,14.69089407,242.23,242.13,4.41574078]
[1732182870497,14.69089407,242.23,242.12,5.7182784]
[1732182871386,14.69089407,242.25,242.12,23.2794784]
[1732182872586,14.69089407,242.25,242.12,17.5612]
[1732182873295,14.69089407,242.26,242.12,17.5612]
[1732182875499,14.69089407,242.28,242.13,5.7182784]
[1732182875682,23.776884,242.3,242.13,5.7182784]
[1732182875683,38.46777807,242.3,242.13,15.75134729]
[1732182876084,14.69089407,242.3,242.14,23.776884]
[1732182876284,14.69089407,242.3,242.15,11.33560651]
[1732182877174,14.69089407,242.3,242.15,15.75134729]
[1732182878377,14.69089407,242.28,242.15,10.13401918]
[1732182879280,14.69089407,242.24,242.15,10.13401918]
[1732182879486,14.69089407,242.24,242.15,4.41574078]
[1732182880877,14.69089407,242.22,242.15,4.41574078]
[1732182881095,14.69089407,242.2,242.12,17.5612]
[1732182881608,14.69089407,242.22,242.12,17.5612]
[1732182886810,14.69089407,242.2,242.12,17.5612]
[1732182889897,14.69089407,242.2,242.12,21.97694078]
[1732182890615,9.41180108,242.2,242.12,21.97694078]
[1732182891303,9.41180108,242.16,242.12,4.41574078]
[1732182891690,9.41180108,242.16,242.08,5.7182784]
[1732182891901,9.41180108,242.16,242.07,4.41574078]
[1732182892708,9.41180108,242.14,242.07,4.41574078]
[1732182893416,9.41180108,242.1,242.07,4.41574078]
[1732182893597,9.41180108,242.1,242.01,4.41574078]
[1732182894701,14.7193394,242.09,242.01,4.41574078]
[1732182899616,14.7193394,242.1,242.01,4.41574078]
[1732182903132,23.776884,242.18,242.01,4.41574078]
[1732182903423,95.8,242.2,242.02,11.33560651]
[1732182903629,14.7193394,242.18,242.03,4.41574078]
[1732182903804,14.7193394,242.18,242.04,11.33560651]
[1732182904118,95.8,242.2,242.04,11.33560651]
[1732182904119,14.7193394,242.16,242.05,4.41574078]
[1732182904321,14.7193394,242.13,242.05,4.41574078]
[1732182904625,14.7193394,242.11,242.05,4.41574078]
[1732182906524,14.7193394,242.15,242.05,4.41574078]
[1732182906832,96.3,242.2,242.05,4.41574078]
[1732182906833,95.8,242.2,242.07,18.6622]
[1732182907123,14.7193394,242.21,242.08,15.75134729]
[1732182907321,25.0787,242.24,242.08,15.75134729]
[1732182907529,13.92790376,242.23,242.08,15.75134729]
[1732182908318,13.92790376,242.23,242.08,11.33560651]
[1732182908705,14.7193394,242.19,242.08,11.33560651]
[1732182908912,14.7193394,242.17,242.07,18.6622]
[1732182912817,14.7193394,242.18,242.07,18.6622]
[1732182913017,14.7193394,242.19,242.07,18.6622]
[1732182913834,14.7193394,242.17,242.07,18.6622]
[1732182914511,14.7193394,242.19,242.07,18.6622]
[1732182914841,110.5193394,242.23,242.08,15.75134729]
[1732182917606,14.7193394,242.19,242.08,10.13401918]
[1732182918038,14.7193394,242.19,242.08,4.41574078]
[1732182919607,110.5193394,242.23,242.09,11.33560651]
[1732182919815,110.5193394,242.23,242.1,4.41574078]
[1732182920030,14.7193394,242.23,242.11,11.33560651]
[1732182920840,14.7193394,242.23,242.11,5.7182784]
[1732182923038,110.5193394,242.28,242.11,5.7182784]
[1732182923039,14.7193394,242.21,242.11,5.7182784]
[1732182923213,14.7193394,242.19,242.1,4.41574078]
[1732182925446,14.7193394,242.18,242.1,4.41574078]
[1732182926136,14.7193394,242.18,242.05,5.61732811]
[1732182926137,15.2193394,242.12,242.05,5.61732811]
[1732182926343,23.776884,242.05,241.87,19.2578]
[1732182926527,14.7193394,242.06,241.87,19.2578]
[1732182927042,14.7193394,242.06,241.88,4.32336292]
[1732182927742,14.7193394,242.08,241.88,4.32336292]
[1732182928525,14.7193394,242.08,241.89,23.776884]
[1732182929619,14.7193394,242.08,241.88,23.776884]
[1732182930337,14.7193394,242.06,241.88,23.776884]
[1732182932240,14.7193394,242.09,241.88,23.776884]
[1732182932439,95.8,242.1,241.91,7.0912]
[1732182932743,95.8,242.1,241.92,41.740084]
[1732182933640,14.7193394,242.15,241.92,41.740084]
[1732182934017,14.7193394,242.15,241.92,45.862084]
[1732182935544,23.776884,242.16,241.92,46.48180581]
[1732182935753,26.6884,242.17,241.92,46.48180581]
[1732182935754,14.7193394,242.17,241.96,17.9361]
[1732182936039,14.7193394,242.17,241.97,23.776884]
[1732182939628,14.7193394,242.15,241.97,23.776884]
[1732182940339,14.7193394,242.19,241.98,18.532]
[1732182940651,14.7193394,242.21,242.01,23.776884]
[1732182941229,14.7193394,242.13,242.0,18.532]
[1732182941544,14.7193394,242.11,242.0,18.532]
[1732182945153,14.7193394,242.07,242.0,18.532]
[1732182947834,14.7193394,242.03,241.94,15.4671]
[1732182948040,14.7193394,242.01,241.94,15.4671]
[1732182953042,14.719339,242.05,241.94,15.4671]
[1732182953243,14.7193394,242.01,241.94,15.4671]
[1732182953456,14.7193394,241.98,241.94,15.4671]
[1732182953661,14.7193394,241.98,241.88,6.4135]
[1732182953662,14.7193394,241.98,241.89,15.7789]
[1732182953879,14.7193394,242.0,241.89,15.7789]
[1732182954044,14.7193394,241.98,241.89,15.7789]
[1732182955142,14.7193394,241.96,241.89,15.7789]
[1732182955469,14.7193394,241.94,241.89,15.7789]
[1732182956336,14.7193394,241.96,241.89,15.7789]
[1732182956973,14.719339,242.05,241.89,19.78448514]
[1732182957138,14.7193394,242.07,241.91,6.2061]
[1732182957464,14.7193394,242.09,241.92,27.78246914]
[1732182957862,14.7193394,242.09,241.92,23.776884]
[1732182958060,14.7193394,242.07,241.91,6.2061]
[1732182958277,14.7193394,242.05,241.91,6.2061]
[1732182959767,14.7193394,242.07,241.91,6.2061]
[1732182963354,14.7193394,242.05,241.91,6.2061]
[1732182965273,14.7193394,242.03,241.91,6.2061]
[1732182965656,14.7193394,242.06,241.91,6.2061]
[1732182971168,14.7193394,242.08,241.92,23.776884]
[1732182971485,14.7193394,242.04,241.91,6.2061]
[1732182971654,14.7193394,242.06,241.91,6.2061]
[1732182972855,14.7193394,242.02,241.91,6.2061]
[1732182973358,14.7193394,242.0,241.89,15.7789]
[1732182973761,14.7193394,241.98,241.89,15.7789]
[1732182975376,14.7193394,241.99,241.89,15.7789]
[1732182976494,16.54976392,242.19,241.96,30.190384]
[1732182976655,14.7193394,242.16,241.97,12.21098482]
[1732182976856,14.7193394,242.16,241.97,18.7670569]
[1732182977565,23.776884,242.15,241.97,18.7670569]
[1732182977966,14.7193394,242.11,241.97,18.7670569]
[1732182978484,14.7193394,242.11,241.97,12.93158311]
[1732182978662,14.7193394,242.11,241.98,5.77911503]
[1732182979062,14.7193394,242.11,241.98,12.33518711]
[1732182979269,14.7193394,242.11,241.99,12.89041644]
[1732182979489,23.776884,242.12,242.0,5.77911503]
[1732182979663,14.7193394,242.13,242.01,6.55607208]
[1732182979986,14.7193394,242.15,242.02,5.77911503]
[1732182980184,14.7193394,242.15,242.02,12.33518711]
[1732182980578,23.776884,242.16,242.02,12.33518711]
[1732182980980,14.7193394,242.15,242.03,6.55607208]
[1732182981193,23.776884,242.16,242.04,15.7847]
[1732182981369,23.776884,242.16,242.04,21.16463458]
[1732182982604,30.5040394,242.19,242.04,21.16463458]
[1732182982762,37.1330394,242.2,242.04,34.05505102]
[1732182982968,14.7193394,242.16,242.04,27.72070666]
[1732182983987,14.7193394,242.14,242.04,21.16463458]
[1732182985571,14.7193394,242.16,242.04,21.16463458]
[1732182987494,14.7193394,242.14,242.04,21.16463458]
[1732182987796,23.776884,242.13,242.04,21.16463458]
[1732182988100,23.776884,242.11,242.04,5.37993458]
[1732182989382,23.776884,242.11,242.0,6.33434436]
[1732182990084,23.776884,242.09,242.0,6.33434436]
[1732182990696,23.776884,242.07,241.96,6.4135]
[1732182991101,23.776884,242.07,241.97,5.37993458]
[1732182991774,23.776884,242.07,241.98,6.33434436]
[1732182993083,23.776884,242.07,241.98,11.71427894]
[1732182996006,14.7193394,242.06,241.98,11.71427894]
[1732182998513,23.776884,242.05,241.98,11.71427894]
[1732183000818,23.776884,241.98,241.87,15.5895]
[1732183000989,14.7193394,241.96,241.87,15.5895]
[1732183001197,14.7193394,241.98,241.87,15.5895]
[1732183001598,23.776884,241.97,241.87,15.5895]
[1732183002193,14.7193394,241.94,241.87,15.5895]
[1732183002395,14.7193394,241.92,241.81,15.1703]
[1732183002704,14.7193394,241.96,241.81,15.1703]
[1732183003045,23.776884,241.95,241.81,15.1703]
[1732183003521,23.776884,241.93,241.81,15.1703]
[1732183004202,14.7193394,241.92,241.81,15.1703]
[1732183004713,14.7193394,241.9,241.81,15.1703]
[1732183004922,23.776884,241.89,241.81,15.1703]
[1732183006298,14.7193394,241.88,241.81,15.1703]
[1732183006505,14.7193394,241.88,241.78,6.4135]
[1732183007738,14.7193394,241.9,241.78,6.4135]
[1732183007915,14.7193394,241.92,241.78,6.4135]
[1732183008225,14.7193394,241.94,241.79,4.86878327]
[1732183010410,14.7193394,241.92,241.79,4.86878327]
[1732183011106,14.7193394,241.92,241.78,11.66805541]
[1732183011314,14.7193394,241.92,241.78,6.4135]
[1732183011819,14.7193394,241.9,241.78,6.4135]
[1732183012013,14.7193394,241.88,241.78,6.4135]
[1732183012215,14.7193394,241.86,241.78,6.4135]
[1732183013105,14.7193394,241.88,241.78,6.4135]
[1732183015720,14.7193394,241.84,241.75,16.189]
[1732183019231,118.0534,241.91,241.75,16.189]
[1732183019232,14.7193394,241.82,241.75,16.189]
[1732183019604,14.7193394,241.84,241.75,16.189]
[1732183024623,9.43902243,241.83,241.75,16.189]
[1732183027021,9.43902243,241.81,241.75,16.189]
[1732183027345,9.43902243,241.82,241.75,16.189]
[1732183027837,23.776884,241.9,241.75,16.189]
[1732183027838,9.43902243,241.83,241.75,16.189]
[1732183029934,9.43902243,241.81,241.75,16.189]
[1732183030114,9.43902243,241.79,241.71,6.4135]
[1732183030319,9.43902243,241.78,241.71,6.4135]
[1732183030845,9.43902243,241.77,241.69,20.77718327]
[1732183031224,9.43902243,241.76,241.69,20.77718327]
[1732183031519,9.43902243,241.77,241.69,20.77718327]
[1732183031930,9.43902243,241.78,241.69,20.77718327]
[1732183032645,9.43902243,241.75,241.69,20.77718327]
[1732183032953,9.43902243,241.75,241.69,15.9084]
[1732183034722,9.43902243,241.76,241.69,15.9084]
[1732183035841,9.43902243,241.75,241.69,15.9084]
[1732183037021,9.43902243,241.71,241.62,4.86878327]
[1732183037218,9.43902243,241.72,241.62,4.86878327]
[1732183037423,9.43902243,241.73,241.62,4.86878327]
[1732183037923,9.43902243,241.71,241.62,4.86878327]
[1732183038127,9.43902243,241.72,241.62,4.86878327]
[1732183038524,9.43902243,241.7,241.57,23.0001]
[1732183038746,9.43902243,241.7,241.57,27.60166104]
[1732183039044,9.43902243,241.71,241.58,9.35056089]
[1732183039233,9.43902243,241.7,241.58,9.35056089]
[1732183039632,23.776884,241.79,241.58,9.35056089]
[1732183039831,9.43902243,241.72,241.58,9.35056089]
[1732183040334,9.43902243,241.71,241.58,9.35056089]
[1732183041225,9.43902243,241.7,241.58,9.35056089]
[1732183041747,9.43902243,241.69,241.58,9.35056089]
[1732183041952,9.43902243,241.59,241.5,0.62074355]
[1732183042245,6.2322,241.7,241.48,0.5]
[1732183042420,9.43902243,241.65,241.47,22.7928]
[1732183042617,22.6888,241.75,241.48,0.5]
[1732183042844,9.43902243,241.67,241.47,26.2124416]
[1732183043043,9.43902243,241.67,241.48,3.4196416]
[1732183043251,9.43902243,241.63,241.48,2.9196416]
[1732183044425,9.43902243,241.67,241.48,2.9196416]
[1732183044621,9.43902243,241.67,241.49,23.776884]
[1732183045534,9.43902243,241.67,241.48,23.776884]
[1732183047642,9.43902243,241.7,241.48,23.776884]
[1732183048239,9.43902243,241.68,241.48,23.776884]
[1732183048532,9.43902243,241.65,241.47,22.7928]
[1732183048742,9.43902243,241.63,241.47,22.7928]
[1732183049437,9.43902243,241.59,241.47,16.6109]
[1732183050254,9.43902243,241.57,241.47,16.6109]
[1732183050543,9.43902243,241.57,241.41,21.5963]
[1732183051552,9.43902243,241.57,241.42,23.776884]
[1732183051753,9.43902243,241.49,241.31,2.9196416]
[1732183052054,9.43902243,241.49,241.26,15.47404475]
[1732183052055,23.776884,241.55,241.27,0.5]
[1732183052233,16.999,241.6,241.29,0.5]
[1732183052234,9.43902243,241.53,241.29,0.5]
[1732183052434,9.43902243,241.53,241.28,6.3425]
[1732183052435,9.43902243,241.51,241.28,6.3425]
[1732183053454,9.43902243,241.49,241.28,6.3425]
[1732183053657,9.43902243,241.53,241.28,6.3425]
[1732183053955,9.43902243,241.51,241.28,6.3425]
[1732183054834,9.43902243,241.49,241.28,6.3425]
[1732183055348,9.43902243,241.47,241.28,6.3425]
[1732183055854,12.86,241.59,241.28,6.3425]
[1732183056158,9.43902243,241.52,241.28,6.8425]
[1732183056643,9.43902243,241.52,241.29,23.776884]
[1732183057035,9.43902243,241.51,241.29,23.776884]
[1732183057255,37.75608972,241.56,241.29,23.776884]
[1732183057457,9.43902243,241.5,241.29,23.776884]
[1732183058032,9.43902243,241.49,241.29,23.776884]
[1732183058229,9.43902243,241.49,241.28,6.3425]
[1732183059544,9.43902243,241.49,241.29,23.776884]
[1732183059953,9.43902243,241.5,241.29,23.776884]
[1732183060148,9.43902243,241.49,241.29,23.776884]
[1732183060862,15.1802,241.51,241.29,23.776884]
[1732183061166,24.61922243,241.51,241.29,23.776884]
[1732183061341,15.1802,241.51,241.3,16.6221]
[1732183061541,15.5631,241.57,241.31,23.776884]
[1732183061753,9.43902243,241.55,241.31,23.776884]
[1732183062438,9.43902243,241.54,241.31,23.776884]
[1732183063234,15.5631,241.57,241.31,23.776884]
[1732183063553,25.00212243,241.57,241.33,23.776884]
[1732183063752,15.5631,241.57,241.33,23.776884]
[1732183063959,6.1085,241.61,241.34,16.1744]
[1732183064261,6.1085,241.61,241.36,23.776884]
[1732183064450,9.43902243,241.65,241.4,23.776884]
[1732183064662,9.43902243,241.58,241.4,23.776884]
[1732183064958,9.43902243,241.57,241.4,23.776884]
[1732183065161,9.43902243,241.55,241.4,23.776884]
[1732183065453,9.46464064,241.54,241.46,9.46464064]
[1732183066263,15.87504064,241.55,241.39,15.6744]
[1732183066574,9.46464064,241.53,241.46,9.46464064]
[1732183066763,23.776884,241.51,241.43,9.46464064]
[1732183066965,9.46464064,241.5,241.43,9.46464064]
[1732183067140,23.776884,241.51,241.44,9.46464064]
[1732183068452,9.46464064,241.5,241.44,9.46464064]
[1732183070645,23.776884,241.51,241.44,9.46464064]
[1732183071159,9.46464064,241.5,241.29,16.608]
[1732183071466,9.46464064,241.44,241.37,9.46464064]
[1732183071768,9.46464064,241.45,241.38,9.46464064]
[1732183072137,9.46464064,241.45,241.29,16.608]
[1732183072338,9.46464064,241.44,241.37,9.46464064]
[1732183072770,9.46464064,241.45,241.37,9.46464064]
[1732183074441,9.46464064,241.45,241.29,16.608]
[1732183074645,9.46464064,241.43,241.36,9.46464064]
[1732183075442,31.91684064,241.43,241.29,16.608]
[1732183075635,31.91684064,241.43,241.32,9.46464064]
[1732183075636,9.46464064,241.41,241.32,9.46464064]
[1732183076141,9.46464064,241.41,241.21,21.2307]
[1732183076341,9.46464064,241.39,241.32,9.46464064]
[1732183077542,9.46464064,241.39,241.21,21.2307]
[1732183077743,9.46464064,241.39,241.3,9.46464064]
[1732183078339,23.776884,241.4,241.2,560.0]
[1732183078340,23.776884,241.3,241.2,560.0]
[1732183078545,9.46464064,241.33,241.24,9.46464064]
[1732183078750,9.46464064,241.33,241.2,560.0]
[1732183078751,23.1815,241.34,241.3,9.46464064]
[1732183078961,9.46464064,241.39,241.3,9.46464064]
[1732183079153,46.216884,241.4,241.32,9.46464064]
[1732183079154,22.44,241.4,241.32,9.46464064]
[1732183080552,9.46464064,241.39,241.32,9.46464064]
[1732183081576,22.44,241.4,241.32,9.46464064]
[1732183081957,9.46464064,241.36,241.2,560.0]
[1732183082268,9.46464064,241.36,241.27,9.46464064]
[1732183083068,23.776884,241.39,241.2,597.85856256]
[1732183083069,9.46464064,241.32,241.23,9.46464064]
[1732183083273,23.776884,241.33,241.23,9.46464064]
[1732183083274,9.46464064,241.3,241.23,9.46464064]
[1732183084252,23.776884,241.34,241.25,9.46464064]
[1732183084482,23.776884,241.34,241.27,9.46464064]
[1732183085354,9.46464064,241.33,241.25,9.46464064]
[1732183085865,23.776884,241.34,241.2,597.85856256]
[1732183085866,23.776884,241.3,241.2,560.0]
[1732183086059,9.46464064,241.29,241.21,9.46464064]
[1732183086459,23.776884,241.3,241.23,9.46464064]
[1732183087797,23.776884,241.3,241.2,560.0]
[1732183087798,9.46464064,241.27,241.2,560.0]
[1732183088256,9.46464064,241.25,241.2,560.0]
[1732183088452,9.46464064,241.21,241.2,560.0]
[1732183088996,9.46464064,241.23,241.2,560.0]
[1732183089151,23.776884,241.28,241.2,560.0]
[1732183089355,9.46464064,241.24,241.2,560.0]
[1732183090973,10.4916,241.29,241.2,560.0]
[1732183090974,6.3472,241.29,241.21,9.46464064]
[1732183091279,9.46464064,241.29,241.21,9.46464064]
[1732183092284,9.46464064,241.28,241.2,560.0]
[1732183092587,9.46464064,241.26,241.2,560.0]
[1732183093160,9.46464064,241.27,241.2,560.0]
[1732183093681,25.00424064,241.27,241.2,560.0]
[1732183094128,15.5396,241.27,241.2,560.0]
[1732183094389,9.46464064,241.26,241.2,560.0]
[1732183094962,9.46464064,241.25,241.2,560.0]
[1732183095778,15.5396,241.28,241.2,560.0]
[1732183095954,9.46464064,241.23,241.2,560.0]
[1732183096153,9.46464064,241.21,241.2,560.0]
[1732183096988,9.46464064,241.22,241.21,2.0728]
[1732183097193,15.5396,241.28,241.21,2.0728]
[1732183097490,9.46464064,241.25,241.21,2.0728]
[1732183097879,9.46464064,241.22,241.2,560.0]
[1732183098382,9.46464064,241.22,241.21,2.0728]
[1732183099007,9.46464064,241.24,241.21,2.0728]
[1732183099387,16.561815,241.28,241.21,2.0728]
[1732183099599,15.5396,241.3,241.21,2.0728]
[1732183099801,9.46464064,241.26,241.21,2.0728]
[1732183099985,15.5396,241.3,241.21,2.0728]
[1732183100193,9.46464064,241.27,241.21,2.0728]
[1732183100614,9.46464064,241.26,241.21,2.0728]
[1732183100985,32.101082,241.3,241.22,9.46464064]
[1732183100986,15.5396,241.3,241.22,9.46464064]
[1732183101295,9.46464064,241.3,241.2,316.96464064]
[1732183101629,9.46464064,241.3,241.22,9.46464064]
[1732183101910,6.0842,241.34,241.26,9.46464064]
[1732183102112,9.46464064,241.35,241.27,9.46464064]
[1732183102714,26.930581,241.4,241.22,16.5439]
[1732183102715,6.2327,241.4,241.29,9.46464064]
[1732183102919,9.46464064,241.37,241.29,9.46464064]
[1732183103091,9.46464064,241.38,241.3,9.46464064]
[1732183103291,9.46464064,241.36,241.29,9.46464064]
[1732183103487,9.46464064,241.35,241.26,9.46464064]
[1732183103793,9.46464064,241.36,241.28,9.46464064]
[1732183104311,9.46464064,241.36,241.22,16.5439]
[1732183104494,9.46464064,241.36,241.28,9.46464064]
[1732183104889,9.46464064,241.34,241.28,9.46464064]
[1732183105712,9.46464064,241.36,241.28,9.46464064]
[1732183106398,9.46464064,241.38,241.3,9.46464064]
[1732183107183,9.46464064,241.36,241.22,16.5439]
[1732183107387,9.46464064,241.29,241.22,26.00854064]
[1732183107706,9.46464064,241.29,241.22,16.5439]
[1732183108012,9.46464064,241.27,241.2,316.96464064]
[1732183108820,14.82111989,241.29,241.2,331.78576053]
[1732183109606,15.9488,241.37,241.2,316.96464064]
[1732183109799,14.82111989,241.28,241.2,331.78576053]
[1732183110209,14.82111989,241.3,241.2,331.78576053]
[1732183110721,14.82111989,241.3,241.22,14.82111989]
[1732183112219,14.82111989,241.3,241.2,316.96464064]
[1732183112395,14.82111989,241.3,241.22,14.82111989]
[1732183113422,14.82111989,241.28,241.2,331.78576053]
[1732183115622,14.82111989,241.32,241.24,14.82111989]
[1732183116803,14.82111989,241.35,241.26,14.82111989]
[1732183117627,30.76991989,241.37,241.29,14.82111989]
[1732183118123,14.82111989,241.35,241.26,14.82111989]
[1732183118422,14.82111989,241.36,241.28,14.82111989]
[1732183118632,14.82111989,241.36,241.3,14.82111989]
[1732183119428,15.9488,241.37,241.28,14.82111989]
[1732183119616,30.76991989,241.37,241.29,14.82111989]
[1732183123206,14.82111989,241.37,241.29,14.82111989]
[1732183123430,14.82111989,241.38,241.3,14.82111989]
[1732183123730,14.82111989,241.37,241.3,14.82111989]
[1732183127740,14.82111989,241.37,241.2,331.78576053]
[1732183127741,14.82111989,241.31,241.2,316.96464064]
[1732183127900,6.0973,241.3,241.2,316.96464064]
[1732183128317,14.82111989,241.26,241.2,316.96464064]
[1732183128919,6.0973,241.3,241.22,14.82111989]
[1732183129133,6.0973,241.3,241.2,316.96464064]
[1732183129134,30.25241989,241.33,241.24,14.82111989]
[1732183129436,15.4313,241.33,241.26,14.82111989]
[1732183129734,6.2305,241.36,241.29,14.82111989]
[1732183131630,15.0499,241.39,241.33,14.82111989]
[1732183132908,16.552985,241.44,241.2,331.78576053]
[1732183132909,31.37410489,241.44,241.37,14.82111989]
[1732183133108,16.3217,241.45,241.39,14.82111989]
[1732183133333,16.3217,241.45,241.41,14.82111989]
[1732183133740,16.3217,241.45,241.4,14.82111989]